bitfinex-derivatives/quotes_SOLF0:USTF0_20250113
["timestamp","ask_amount","ask_price","bid_price","bid_amount"]
[1736747858908,7.33971899,184.11,184.05,2.7181]
[1736747859510,7.33971899,184.11,184.04,7.33971899]
[1736747859511,2.7175,184.09,184.04,7.33971899]
[1736747861315,2.7175,184.09,184.03,7.6603]
[1736747861511,2.7175,184.09,184.03,4.942]
[1736747861709,2.7173,184.11,184.05,2.718]
[1736747861913,2.7173,184.11,184.03,4.942]
[1736747863116,11.48757207,184.13,184.06,2.718]
[1736747863314,2.7171,184.13,184.04,11.48757207]
[1736747864218,2.7171,184.13,184.07,2.7177]
[1736747864516,2.7171,184.12,184.07,2.7177]
[1736747864706,5.64,184.15,184.04,11.48757207]
[1736747864914,5.64,184.15,184.06,2.718]
[1736747865213,2.7171,184.12,184.06,2.718]
[1736747865416,5.64,184.15,184.08,2.7176]
[1736747866417,5.64,184.15,184.07,2.7178]
[1736747866614,2.717,184.13,184.07,2.7178]
[1736747866816,5.64,184.15,184.04,11.48757207]
[1736747867017,5.64,184.15,184.06,2.7179]
[1736747867213,2.7173,184.11,184.04,11.48757207]
[1736747867619,2.7173,184.11,184.05,2.7181]
[1736747868012,2.7174,184.1,184.03,7.6603]
[1736747868216,11.48757207,184.1,184.03,3.2393]
[1736747868520,11.48757207,184.1,183.98,129.78149077]
[1736747869313,2.7179,184.07,183.98,132.50059077]
[1736747869512,5.64,184.07,183.98,132.50059077]
[1736747869916,5.64,184.07,183.99,2.7189]
[1736747870121,5.64,184.07,183.98,129.78149077]
[1736747870619,8.3579,184.07,184.0,2.7188]
[1736747870811,8.3579,184.07,183.98,129.78149077]
[1736747872120,8.3579,184.07,184.01,2.7187]
[1736747872421,2.718,184.06,184.01,2.7187]
[1736747879527,8.3578,184.07,184.02,2.7185]
[1736747879821,11.48757207,184.14,184.01,11.48757207]
[1736747880022,11.48757207,184.14,184.02,1.6245]
[1736747880230,5.64,184.16,184.04,11.48757207]
[1736747880428,5.64,184.16,184.05,1.5797]
[1736747881023,11.48757207,184.17,184.05,1.5797]
[1736747881229,5.64,184.16,184.05,1.5797]
[1736747882032,2.717,184.13,184.08,2.7175]
[1736747882435,5.64,184.16,184.05,1.5797]
[1736747884137,2.7172,184.12,184.07,2.7178]
[1736747884340,5.64,184.16,184.05,1.5797]
[1736747884535,11.48757207,184.14,184.05,1.5797]
[1736747885334,7.35016626,184.12,184.06,7.35016626]
[1736747885536,7.35016626,184.14,184.08,7.35016626]
[1736747885736,5.64,184.16,184.08,7.35016626]
[1736747885935,7.35016626,184.15,184.08,7.35016626]
[1736747886131,147.92832338,184.26,184.1,7.35016626]
[1736747886335,2.7163,184.17,184.12,10.06716626]
[1736747887139,131.90978258,184.2,184.14,7.35016626]
[1736747887332,131.90978258,184.2,184.13,11.47276865]
[1736747887538,131.90978258,184.2,184.14,3.2638]
[1736747887741,5.64,184.22,184.14,3.2638]
[1736747887942,5.64,184.22,184.14,4.8197]
[1736747888843,11.47276865,184.25,184.14,4.8197]
[1736747889046,5.64,184.24,184.14,4.8197]
[1736747889247,2.7159,184.21,184.16,2.7164]
[1736747890251,2.7156,184.23,184.17,2.7163]
[1736747890452,5.64,184.24,184.14,4.8197]
[1736747891053,11.47276865,184.22,184.14,4.8197]
[1736747891250,11.47276865,184.22,184.14,3.2638]
[1736747891658,2.7165,184.16,184.1,11.47276865]
[1736747891858,11.47276865,184.22,184.1,11.47276865]
[1736747892160,5.64,184.21,184.1,11.47276865]
[1736747893155,2.7163,184.18,184.12,2.717]
[1736747893359,5.64,184.21,184.1,11.47276865]
[1736747894256,2.7162,184.19,184.14,2.7167]
[1736747894458,5.64,184.21,184.1,11.47276865]
[1736747894659,11.47276865,184.19,184.07,14.69646865]
[1736747894863,2.7166,184.16,184.08,2.7175]
[1736747895064,11.47276865,184.19,184.08,2.7175]
[1736747895257,11.47276865,184.19,184.07,14.69646865]
[1736747895455,2.7168,184.14,184.09,2.7175]
[1736747899165,11.47276865,184.19,184.07,14.69646865]
[1736747899166,2.7165,184.16,184.11,2.7171]
[1736747899361,5.64,184.21,184.1,11.47276865]
[1736747899757,5.64,184.21,184.07,14.69646865]
[1736747899960,5.64,184.21,184.1,2.7172]
[1736747901365,5.64,184.21,184.07,14.69646865]
[1736747902255,2.7163,184.18,184.12,2.717]
[1736747903266,2.7163,184.18,184.13,2.7168]
[1736747903566,2.7161,184.19,184.1,11.47276865]
[1736747903959,2.7161,184.19,184.14,2.7167]
[1736747904157,2.7162,184.18,184.14,2.7167]
[1736747904358,131.90179105,184.21,184.14,2.7167]
[1736747905668,131.90179105,184.21,184.16,2.7165]
[1736747907064,134.61759105,184.21,184.16,2.7165]
[1736747907569,131.90179105,184.21,184.17,7.34185128]
[1736747907768,2.7161,184.19,184.15,7.34185128]
[1736747908069,7.34185128,184.19,184.14,6.0364]
[1736747908870,7.34185128,184.19,184.14,3.3198]
[1736747909069,7.34185128,184.19,184.14,1.6263]
[1736747910070,2.7164,184.17,184.14,1.6263]
[1736747910472,7.34185128,184.19,184.14,1.6263]
[1736747910773,2.7165,184.17,184.14,1.6263]
[1736747910968,7.34185128,184.19,184.14,1.6263]
[1736747912175,2.7163,184.17,184.14,1.6263]
[1736747913462,2.7163,184.17,184.12,2.717]
[1736747913463,7.34185128,184.17,184.06,1.5722]
[1736747913667,7.34185128,184.13,184.08,7.34185128]
[1736747913873,7.34185128,184.13,184.07,1.5525]
[1736747914270,5.64,184.14,184.07,1.5525]
[1736747914271,10.05915128,184.11,184.07,1.5525]
[1736747914478,7.34185128,184.11,184.07,1.5525]
[1736747915469,5.64,184.14,184.07,1.5525]
[1736747916676,2.7173,184.11,184.06,1.5722]
[1736747917464,5.64,184.14,184.06,1.5722]
[1736747917668,2.7174,184.1,184.05,2.718]
[1736747917873,11.48491354,184.12,184.0,11.48491354]
[1736747918075,2.7177,184.08,184.0,11.48491354]
[1736747919175,2.7177,184.08,184.03,2.7184]
[1736747919376,11.48491354,184.12,184.0,11.48491354]
[1736747919565,5.64,184.14,184.03,11.48491354]
[1736747919768,5.64,184.14,184.06,2.7178]
[1736747920477,5.64,184.14,184.03,11.48491354]
[1736747920770,2.7174,184.1,184.05,2.7181]
[1736747922879,2.7174,184.1,184.03,11.48491354]
[1736747924079,2.7174,184.1,184.05,2.7181]
[1736747925379,2.7178,184.08,184.03,2.7183]
[1736747925575,11.48491354,184.12,184.0,11.48491354]
[1736747926376,2.7179,184.07,184.02,2.7185]
[1736747926578,11.48491354,184.12,184.0,11.48491354]
[1736747927083,2.7179,184.07,184.01,2.7186]
[1736747928780,2.718,184.06,184.01,2.7186]
[1736747929984,2.7182,184.05,184.01,2.7186]
[1736747930484,11.48491354,184.09,184.0,2.7188]
[1736747930681,2.7184,184.04,184.0,2.7188]
[1736747938793,2.7188,184.01,183.98,1.6253]
[1736747939587,2.7189,184.0,183.98,1.6253]
[1736747940482,2.7189,184.0,183.95,7.35542483]
[1736747940483,2.719,183.99,183.95,2.7196]
[1736747940879,7.35542483,184.01,183.93,7.35542483]
[1736747941184,7.35542483,183.99,183.93,7.35542483]
[1736747941586,2.7192,183.98,183.94,2.7196]
[1736747942685,7.35542483,183.99,183.93,7.35542483]
[1736747944102,10.07442483,183.99,183.94,2.7196]
[1736747945387,7.35542483,183.99,183.87,3.2543]
[1736747945588,7.35542483,183.95,183.89,7.35542483]
[1736747946598,2.7199,183.94,183.89,10.07572483]
[1736747949799,2.7194,183.96,183.92,2.7199]
[1736747950093,7.35542483,183.98,183.92,7.35542483]
[1736747951096,2.7193,183.97,183.93,2.7199]
[1736747951292,7.35542483,183.96,183.87,3.2543]
[1736747951498,7.35542483,183.94,183.89,7.35542483]
[1736747953500,7.35542483,183.94,183.87,10.60972483]
[1736747953700,2.72,183.93,183.89,2.7204]
[1736747954301,7.35542483,183.94,183.87,3.2543]
[1736747954503,7.35542483,183.92,183.87,10.60972483]
[1736747956198,2.7202,183.91,183.87,5.975]
[1736747956595,7.35542483,183.92,183.9,2.7203]
[1736747958299,2.7194,183.97,183.91,2.7201]
[1736747958501,7.35542483,183.95,183.89,7.35542483]
[1736747960104,7.35542483,183.95,183.91,2.7201]
[1736747960304,7.35542483,183.95,183.89,7.35542483]
[1736747960808,7.35542483,183.95,183.92,2.7199]
[1736747962209,7.35542483,183.97,183.91,7.35542483]
[1736747962401,132.04000126,184.01,183.93,7.35542483]
[1736747962709,139.39542609,184.01,183.93,7.35542483]
[1736747963506,142.11422609,184.01,183.96,2.7194]
[1736747965907,7.35542483,183.99,183.96,2.7194]
[1736747966106,7.35542483,183.99,183.95,2.7195]
[1736747966306,7.35542483,183.99,183.91,7.35542483]
[1736747966806,10.07442483,183.99,183.94,2.7196]
[1736747967209,10.07442483,183.99,183.95,2.7196]
[1736747967408,7.35542483,183.99,183.95,2.7196]
[1736747967711,7.35542483,183.99,183.97,2.7192]
[1736747968107,132.04000126,184.01,183.95,7.35542483]
[1736747969107,132.04000126,184.01,183.99,2.7188]
[1736747970512,7.35542483,184.02,183.99,2.7188]
[1736747971009,11.27429678,184.03,184.02,2.7185]
[1736747971604,7.35542483,184.06,183.99,7.35542483]
[1736747971810,7.35542483,184.06,184.03,2.7184]
[1736747972014,7.35542483,184.06,184.01,7.35542483]
[1736747972213,7.35542483,184.06,183.94,4.9827]
[1736747972214,7.35542483,184.08,184.03,7.35542483]
[1736747972912,7.35542483,184.08,184.05,2.718]
[1736747973315,7.35542483,184.08,184.01,7.35542483]
[1736747973519,5.64,184.1,184.01,7.35542483]
[1736747973711,7.35542483,184.08,184.01,7.35542483]
[1736747973906,7.35542483,184.08,184.05,2.718]
[1736747979316,7.35542483,184.08,184.02,3.0845]
[1736747979516,7.35542483,184.08,184.04,2.7182]
[1736747980822,7.35542483,184.06,184.04,2.7182]
[1736747981323,7.35542483,184.08,184.02,3.0845]
[1736747981516,7.35542483,184.04,183.95,7.78836592]
[1736747981717,7.35542483,184.02,183.95,11.14416592]
[1736747982118,7.35542483,184.02,183.97,2.7193]
[1736747982314,7.35542483,184.0,183.95,11.14416592]
[1736747982520,5.64,184.1,183.95,11.14416592]
[1736747982521,7.35542483,183.98,183.95,3.3558]
[1736747983224,7.35542483,183.98,183.95,6.0754]
[1736747983523,7.35542483,183.98,183.95,3.3558]
[1736747986527,2.7191,183.99,183.95,3.3558]
[1736747986827,10.07452483,183.99,183.95,3.3558]
[1736747992322,7.35542483,184.03,183.97,7.35542483]
[1736747994128,10.07382483,184.03,183.98,2.719]
[1736747995330,2.7186,184.02,183.97,7.35542483]
[1736747995525,2.7186,184.02,183.97,10.07472483]
[1736747996022,2.7186,184.02,183.97,2.7193]
[1736747996228,7.35542483,184.01,183.97,2.7193]
[1736747996826,2.7189,184.0,183.95,13.43072483]
[1736747997027,7.35542483,184.01,183.95,6.0753]
[1736747998023,7.35542483,183.99,183.95,6.0753]
[1736747998431,7.35542483,183.99,183.95,3.3558]
[1736747998731,10.07452483,183.99,183.95,3.3558]
[1736747999432,10.07452483,183.99,183.94,2.7197]
[1736748000033,7.35542483,183.99,183.94,7.35542483]
[1736748000242,10.07432483,184.0,183.94,7.35542483]
[1736748000429,7.35542483,184.0,183.94,7.35542483]
[1736748000625,7.35542483,184.0,183.96,2.7193]
[1736748001233,10.07422483,184.0,183.96,2.7193]
[1736748003334,2.719,183.99,183.95,2.7195]
[1736748003837,7.35542483,183.96,183.84,4.8285]
[1736748004037,7.35542483,183.94,183.87,7.35542483]
[1736748004240,7.35542483,183.94,183.89,7.35542483]
[1736748004434,7.35542483,183.96,183.92,2.72]
[1736748004737,7.35542483,183.96,183.89,7.35542483]
[1736748004738,7.35542483,183.96,183.91,7.35542483]
[1736748005129,7.35542483,183.96,183.93,2.7198]
[1736748005738,7.35542483,183.96,183.91,7.35542483]
[1736748006032,7.35542483,184.0,183.93,7.35542483]
[1736748006537,2.719,183.99,183.95,2.7196]
[1736748007425,7.35542483,183.98,183.93,7.35542483]
[1736748007630,7.35542483,183.96,183.92,2.7199]
[1736748008025,7.35542483,183.95,183.92,2.7199]
[1736748008229,7.35542483,183.95,183.88,7.35542483]
[1736748008841,7.35542483,183.91,183.84,4.8285]
[1736748009137,7.35542483,183.91,183.85,7.35542483]
[1736748009332,7.35542483,183.91,183.88,2.7206]
[1736748009533,7.35542483,183.91,183.85,7.35542483]
[1736748009734,7.35542483,183.93,183.87,7.35542483]
[1736748010336,10.07532483,183.93,183.84,4.8285]
[1736748010539,10.07532483,183.93,183.86,7.35542483]
[1736748010937,10.07532483,183.93,183.88,2.7205]
[1736748011130,7.35542483,183.91,183.88,2.7205]
[1736748011739,10.07552483,183.92,183.88,2.7205]
[1736748012139,7.35542483,183.9,183.84,4.8285]
[1736748012335,7.35542483,183.9,183.84,12.18392483]
[1736748013041,7.35542483,183.9,183.87,2.7208]
[1736748013940,2.7203,183.91,183.87,2.7208]
[1736748014333,5.64,183.96,183.89,7.35542483]
[1736748014541,7.35542483,183.95,183.89,7.35542483]
[1736748015040,7.35542483,183.95,183.91,2.72]
[1736748015742,7.35542483,183.98,183.84,4.8285]
[1736748015941,7.35542483,183.98,183.92,7.35542483]
[1736748016241,5.64,183.99,183.92,7.35542483]
[1736748016440,5.64,183.99,183.94,7.35542483]
[1736748016641,7.35542483,184.0,183.94,7.35542483]
[1736748017237,5.64,184.01,183.94,7.35542483]
[1736748017438,147.92832338,184.08,183.96,7.35542483]
[1736748017439,7.35542483,184.02,183.96,7.35542483]
[1736748017640,7.35542483,184.02,183.98,2.7191]
[1736748018136,7.35542483,184.02,183.96,7.35542483]
[1736748018344,10.07412483,184.02,183.97,2.7193]
[1736748018840,10.07432483,184.0,183.95,2.7195]
[1736748019047,7.35542483,183.98,183.95,2.7195]
[1736748019237,2.7189,184.0,183.95,2.7195]
[1736748019442,2.7189,184.0,183.96,2.7194]
[1736748019443,7.35542483,184.0,183.96,2.7194]
[1736748019841,2.7183,184.04,183.99,2.719]
[1736748020037,7.35542483,184.03,183.99,2.719]
[1736748020539,7.35542483,184.05,183.98,7.35542483]
[1736748021548,10.07362483,184.05,184.0,2.7188]
[1736748021744,7.35542483,184.03,183.98,7.35542483]
[1736748021945,7.35542483,184.03,183.97,1.6231]
[1736748022745,7.35542483,184.01,183.97,2.7192]
[1736748023046,7.35542483,184.01,183.94,7.35542483]
[1736748024049,7.35542483,184.03,183.96,7.35542483]
[1736748024552,7.35542483,184.03,183.98,7.35542483]
[1736748025245,10.07362483,184.05,183.98,7.35542483]
[1736748025452,2.7182,184.05,183.96,11.4930459]
[1736748026246,5.64,184.12,183.99,11.4930459]
[1736748026445,17.1330459,184.12,183.99,11.4930459]
[1736748026845,11.4930459,184.09,183.99,11.4930459]
[1736748027048,11.4930459,184.09,183.96,11.4930459]
[1736748027944,2.7178,184.07,184.02,2.7184]
[1736748028553,2.7178,184.07,184.03,2.7184]
[1736748029651,11.4930459,184.09,184.04,2.7182]
[1736748031053,14.2106459,184.09,184.04,2.7182]
[1736748031552,11.4930459,184.09,184.04,2.7182]
[1736748031753,2.7177,184.08,183.96,11.4930459]
[1736748033057,2.7177,184.08,184.03,2.7183]
[1736748033249,11.4930459,184.09,183.96,11.4930459]
[1736748033457,5.64,184.1,184.0,11.4930459]
[1736748033761,5.64,184.1,184.01,4.9626]
[1736748034059,5.64,184.1,184.07,2.7178]
[1736748034358,5.64,184.1,184.01,4.9626]
[1736748036057,2.7177,184.08,184.04,2.7182]
[1736748036356,5.64,184.1,184.04,2.7182]
[1736748037152,2.7176,184.09,184.04,2.7182]
[1736748044968,2.7176,184.09,184.05,2.7181]
[1736748045363,7.35304688,184.08,184.05,2.7181]
[1736748046664,7.35304688,184.08,184.02,7.35304688]
[1736748046865,10.07074688,184.08,184.04,2.7182]
[1736748047267,7.35304688,184.06,184.01,4.9626]
[1736748047568,5.64,184.1,184.01,3.2605]
[1736748047569,7.35304688,184.04,184.01,3.2605]
[1736748047765,10.07134688,184.04,184.01,3.2605]
[1736748048072,10.07134688,184.04,183.97,7.35304688]
[1736748049369,7.35304688,184.04,183.97,7.35304688]
[1736748049673,5.64,184.1,184.01,2.7186]
[1736748049867,7.35304688,184.06,183.99,7.35304688]
[1736748050763,10.07104688,184.06,184.02,2.7185]
[1736748052371,7.35304688,184.04,183.95,3.1621]
[1736748052672,7.35304688,184.0,183.95,3.1621]
[1736748052878,7.35304688,183.98,183.95,3.1621]
[1736748054078,7.35304688,184.0,183.98,2.7191]
[1736748055384,8.3587,184.02,183.98,2.7191]
[1736748056183,5.64,184.02,184.0,2.7188]
[1736748056379,5.64,184.02,183.96,1.6121]
[1736748056780,5.64,184.02,183.98,2.719]
[1736748057479,2.7187,184.01,183.96,4.3314]
[1736748057687,5.64,184.02,183.96,2.7193]
[1736748057980,5.64,184.02,183.95,3.1621]
[1736748058287,2.7191,183.99,183.95,3.1621]
[1736748059179,2.7189,184.0,183.95,5.8815]
[1736748059376,2.7189,184.0,183.95,3.1621]
[1736748059987,5.64,184.02,183.99,2.719]
[1736748060488,5.64,184.02,183.98,2.7191]
[1736748061075,5.64,184.02,183.95,14.66017282]
[1736748062186,5.64,184.02,183.99,2.7189]
[1736748063191,5.64,184.02,183.95,14.66017282]
[1736748063384,5.64,184.07,183.95,14.66017282]
[1736748063990,11.49807282,184.06,183.95,3.1621]
[1736748064181,11.49807282,184.03,183.95,3.1621]
[1736748065491,11.49807282,184.06,183.95,14.66017282]
[1736748066384,2.7186,184.02,183.97,2.7193]
[1736748066584,2.7186,184.02,183.95,14.66017282]
[1736748066984,11.49807282,184.06,183.95,14.66017282]
[1736748067182,2.7181,184.05,183.95,14.66017282]
[1736748067586,2.7181,184.05,183.98,2.7191]
[1736748067891,2.7181,184.05,183.95,14.66017282]
[1736748068689,2.7181,184.05,184.0,2.7188]
[1736748069284,11.49807282,184.06,183.95,14.66017282]
[1736748069589,11.49807282,184.06,183.95,3.1621]
[1736748069892,11.49807282,184.03,183.95,3.1621]
[1736748070593,2.719,183.99,183.95,5.8815]
[1736748071489,11.49807282,184.03,183.95,5.8815]
[1736748071691,11.49807282,184.03,183.95,3.1621]
[1736748072694,2.7188,184.01,183.97,2.7193]
[1736748074295,11.49807282,184.03,183.97,2.7193]
[1736748074490,2.7186,184.02,183.97,2.7193]
[1736748077395,11.49807282,184.03,183.97,2.7193]
[1736748077596,2.7187,184.01,183.97,2.7193]
[1736748078495,2.7183,184.04,184.0,2.7188]
[1736748079501,7.35529839,184.01,183.95,3.1621]
[1736748080197,7.35529839,184.01,183.95,10.51739839]
[1736748080400,7.35529839,184.01,183.95,3.1621]
[1736748080895,7.35529839,184.01,183.95,10.51739839]
[1736748081296,10.07409839,184.01,183.97,2.7192]
[1736748081797,2.7184,184.03,183.99,2.719]
[1736748081996,7.35529839,184.05,183.97,7.35529839]
[1736748082197,7.35529839,184.05,183.99,7.35529839]
[1736748082899,2.7183,184.04,184.0,2.7187]
[1736748083597,143.20058399,184.08,183.96,11.49278403]
[1736748083803,147.92832338,184.11,184.02,11.49278403]
[1736748084099,147.92832338,184.11,184.05,11.49278403]
[1736748084299,147.92832338,184.11,184.09,2.7175]
[1736748084502,2.7171,184.13,184.09,2.7175]
[1736748084801,17.13278403,184.16,184.05,11.49278403]
[1736748084995,2.7174,184.1,184.04,1.5538]
[1736748086004,11.49278403,184.1,184.03,3.1767]
[1736748086799,11.49278403,184.07,184.03,3.1767]
[1736748086998,11.49278403,184.07,183.97,4.86]
[1736748087207,11.49278403,184.04,183.97,4.86]
[1736748087498,11.49278403,184.04,183.97,3.1965]
[1736748087499,2.7188,184.01,183.97,3.1965]
[1736748090100,11.49278403,184.04,183.97,3.1965]
[1736748090301,2.7185,184.03,183.97,3.1965]
[1736748090804,2.7183,184.04,183.97,3.1965]
[1736748091011,11.49278403,184.07,183.97,3.1965]
[1736748091205,11.49278403,184.07,183.98,1.5585]
[1736748091406,2.7181,184.05,184.0,2.7187]
[1736748091700,147.92832338,184.12,183.98,1.5585]
[1736748091701,5.64,184.08,183.98,1.5585]
[1736748091907,17.13278403,184.1,183.99,11.49278403]
[1736748092502,2.7177,184.08,184.03,2.7183]
[1736748092998,2.7177,184.08,184.04,2.7182]
[1736748093998,11.49278403,184.13,184.02,11.49278403]
[1736748094201,10.95603963,184.17,184.05,11.49278403]
[1736748094404,10.95603963,184.17,184.08,11.49278403]
[1736748094794,10.95603963,184.17,184.06,4.9851]
[1736748095103,11.49278403,184.15,184.06,4.9851]
[1736748095306,2.7171,184.12,184.06,7.7029]
[1736748095707,11.49278403,184.12,184.06,4.9851]
[1736748095905,11.49278403,184.12,184.06,3.3853]
[1736748096805,2.7175,184.1,184.04,2.7181]
[1736748097004,5.64,184.11,184.04,2.7181]
[1736748097200,11.49278403,184.09,184.03,74.62311869]
[1736748097401,2.7178,184.07,184.02,2.7184]
[1736748099007,5.64,184.11,183.99,11.49278403]
[1736748099306,11.49278403,184.12,184.02,11.49278403]
[1736748099500,11.49278403,184.12,184.05,2.7181]
[1736748099696,11.49278403,184.12,184.06,3.2895]
[1736748100206,14.20988403,184.12,184.07,2.7177]
[1736748101503,11.49278403,184.12,184.07,2.7177]
[1736748101704,2.7172,184.11,184.06,6.0074]
[1736748103506,2.7175,184.1,184.06,3.2895]
[1736748104100,11.49278403,184.12,183.99,11.49278403]
[1736748104300,11.49278403,184.09,183.99,14.68128403]
[1736748105007,2.7179,184.07,183.99,14.68128403]
[1736748105306,11.49278403,184.09,183.99,14.68128403]
[1736748105502,14.21038403,184.09,184.04,2.7182]
[1736748107908,11.49278403,184.12,183.99,14.68128403]
[1736748108103,11.49278403,184.12,184.02,11.49278403]
[1736748108300,11.49278403,184.12,184.03,1.6529]
[1736748109508,11.49278403,184.12,184.05,2.7181]
[1736748109807,11.49278403,184.12,184.03,1.6529]
[1736748110307,11.49278403,184.12,183.99,14.68128403]
[1736748110509,11.49278403,184.08,183.99,3.1885]
[1736748110705,2.718,184.06,183.99,3.1885]
[1736748111107,11.49278403,184.08,183.99,3.1885]
[1736748111307,2.7184,184.03,183.99,3.1885]
[1736748111707,11.49278403,184.05,183.94,1.6736]
[1736748112011,2.7188,184.01,183.94,5.011]
[1736748112207,11.49278403,184.05,183.94,5.011]
[1736748112404,11.49278403,184.05,183.96,2.7194]
[1736748112608,11.49278403,184.02,183.96,2.7194]
[1736748113009,2.7188,184.0,183.95,2.7196]
[1736748115911,2.719,183.99,183.95,2.7196]
[1736748116714,11.49278403,184.02,183.94,3.3374]
[1736748116913,2.7192,183.98,183.94,3.3374]
[1736748118203,2.7192,183.98,183.94,6.0571]
[1736748119016,11.49278403,184.02,183.94,6.0571]
[1736748119315,2.719,183.99,183.94,6.0571]
[1736748120913,11.49278403,184.02,183.94,6.0571]
[1736748121113,2.7192,183.98,183.94,6.0571]
[1736748121414,11.49278403,183.99,183.91,4.3529]
[1736748121815,5.64,183.98,183.91,4.3529]
[1736748122514,2.7196,183.96,183.91,4.3529]
[1736748122715,5.64,183.98,183.87,11.49278403]
[1736748123022,2.7199,183.94,183.89,2.7203]
[1736748124918,2.7199,183.93,183.89,2.7203]
[1736748125116,2.7199,183.93,183.88,2.7206]
[1736748128417,2.7203,183.9,183.85,1.6636]
[1736748128613,11.49278403,183.93,183.85,1.6636]
[1736748129218,2.7206,183.89,183.85,1.6636]
[1736748130320,2.7206,183.89,183.85,4.3846]
[1736748131616,2.7206,183.88,183.85,1.6636]
[1736748132619,11.49278403,183.93,183.85,1.6636]
[1736748133219,2.7202,183.92,183.87,2.7206]
[1736748134014,2.7198,183.94,183.89,2.7203]
[1736748134216,11.49278403,183.96,183.89,2.7203]
[1736748134416,17.13278403,183.96,183.89,2.7203]
[1736748134818,2.7197,183.94,183.89,2.7203]
[1736748135714,11.49278403,183.96,183.91,2.7201]
[1736748135914,11.49278403,183.96,183.87,11.49278403]
[1736748136220,2.7195,183.96,183.91,2.7201]
[1736748136426,11.49278403,183.96,183.85,1.6636]
[1736748137325,2.7201,183.92,183.88,2.7206]
[1736748138111,2.7204,183.9,183.86,2.7208]
[1736748138520,11.49278403,183.9,183.83,1.692]
[1736748138821,11.49278403,183.9,183.83,4.4134]
[1736748139420,2.7208,183.87,183.83,1.692]
[1736748139619,11.49278403,183.9,183.83,1.692]
[1736748140223,11.49278403,183.92,183.83,1.692]
[1736748142216,11.49278403,183.92,183.86,2.7208]
[1736748142618,11.49278403,183.92,183.83,1.692]
[1736748142822,2.7201,183.92,183.83,1.692]
[1736748143328,2.7201,183.92,183.85,2.721]
[1736748143623,11.49278403,183.92,183.83,1.692]
[1736748145130,2.7204,183.9,183.85,2.721]
[1736748145521,2.7204,183.9,183.83,1.692]
[1736748145522,11.49278403,183.92,183.83,1.692]
[1736748145723,2.7208,183.88,183.83,4.4134]
[1736748146025,11.49278403,183.89,183.83,1.692]
[1736748146537,11.49278403,183.89,183.85,2.721]
[1736748146740,11.49278403,183.89,183.83,1.692]
[1736748147336,11.49278403,183.89,183.8,3.1921]
[1736748147537,2.7207,183.88,183.83,2.7212]
[1736748148236,11.49278403,183.92,183.81,1.6976]
[1736748148643,11.49278403,183.92,183.89,2.7205]
[1736748149232,14.21288403,183.92,183.87,2.7207]
[1736748149839,2.7203,183.91,183.86,2.7209]
[1736748150545,11.49278403,183.92,183.86,2.7209]
[1736748151041,2.721,183.86,183.81,1.6976]
[1736748151246,11.49278403,183.86,183.81,1.6976]
[1736748151745,14.21368403,183.86,183.81,4.4191]
[1736748151945,14.21368403,183.86,183.81,1.6976]
[1736748152146,11.49278403,183.89,183.81,1.6976]
[1736748152347,14.21338403,183.89,183.84,2.7211]
[1736748152547,11.49278403,183.89,183.84,2.7211]
[1736748154240,11.49278403,183.89,183.86,2.7208]
[1736748154449,5.64,183.91,183.86,2.7208]
[1736748154648,11.49278403,183.89,183.81,1.6976]
[1736748155151,11.49278403,183.89,183.82,2.7214]
[1736748155344,11.49278403,183.89,183.81,1.6976]
[1736748155545,11.49278403,183.86,183.81,1.6976]
[1736748156040,2.7211,183.85,183.81,4.4191]
[1736748157052,2.7212,183.84,183.8,4.312]
[1736748157550,2.7214,183.83,183.75,3.2477]
[1736748157757,14.21418403,183.83,183.78,2.722]
[1736748157957,11.49278403,183.83,183.78,2.722]
[1736748158353,2.7216,183.82,183.77,2.7222]
[1736748159049,2.7218,183.81,183.76,2.7224]
[1736748159252,11.49278403,183.8,183.68,11.49278403]
[1736748159454,11.49278403,183.8,183.69,1.6418]
[1736748160051,2.7223,183.77,183.71,2.723]
[1736748161351,14.21508403,183.77,183.71,2.723]